Workbook

Sheet SSNonSSDosing
B1: For educational use only. No warrenties expressed or implied.
B2: https://pkineticdrugdosing.com
B3: Digoxin Population Based Dosing For Adults | C3: Pkineticdrugdosing.com
B4: Does the Paitent Have Congestion Heart Failure | C4: Yes
B5: Input Age (Years)
B6: Input Height (Inches)
B7: Input Weight (kg)
B8: Select Sex - Drop Down Box | C8: Male
B9: Serum Creatinine (mg/dL)
B10: Calculated LBW (kg) | C10: =IF(C8="Male",(C6-60)*2.3+50,(C6-60)*2.3+45.5) -> -88
B11: LBW (kg ) Used | C11: =IF(C10<=C7,C10,C7) -> -88
B12: Body Surface Area Calculated Meters Squared | C12: =C7^0.425*(C6*2.54)^0.725*(71.84/10000) -> 0
B13: Select Interacting Drug or Disease State - Drop Down Box | C13: None
B14: Clearance Multiplication Factor | C14: =VLOOKUP(C13,Parameter!A10:C21,2,FALSE) -> 1 | D14: Vd Multipliers | E14: Clearance Multipliers
B15: Volume of Distribution Multiplication Factor | C15: =VLOOKUP(C13,Parameter!A10:C21,3,FALSE) -> 1 | D15: Quinidine 0.7 | E15: Amiodarone 0.5
B16: Calculated Creatinine Clearance (ml/min) | C16: =IF(C8="Male",(140-C5)*C11/(C9*72),0.85*(140-C5)*C11/(C9*72)) ->  | D16: Hypothyroid 0.7 | E16: Canaglifozin 0.8
B17: Calculated Creatinine Clearance (ml/min/1.73 Sq. meters) | C17: =C16*1.73/C12 ->  | D17: Hyperthyroid 1 | E17: Carvedilol 0.75
B18: Population Volume of Distribution (L) Paulson Equation | C18: =((4.5+0.028*C17)*C11)*C15 ->  | E18: Dronedarone 0.5
B19: Calculated Volume of Distribution (L/kg) | C19: =C18/C11 ->  | E19: Ketoconazole/Itraconazole 0.5
B20: Population Clearnace (L/hour) Sheiner Equation | C20: =IF(C4="Yes", ((0.33*C11+0.9*C16)*60/1000)*C14,(( 0.8*C11+C16)*60/1000))*C14 ->  | E20: Propafenone 0.75
A21: hide | B21: Calculated Clearance (L/hours/kg) | C21: =C20/C11 -> 
B22: K calculated (1/hours) | C22: =C20/C18 ->  | E22: Quinidine 0.5
B23: Half-Life (Days) | C23: =0.693/(24*C22) ->  | E23: Ranolazine 0.67 | F23: 20
B24: Days to 87.5% of Steady State (3 half-lives) | C24: =C23*3 ->  | E24: Verapamil 0.75
B25: Select Dosage Form - Drop Down Box | C25: Tablets | E25: Hypothyroid 0.7
B26: Fraction Absorbed (F) for Dosage Form | C26: =VLOOKUP(C25,Parameter!B2:D5,2,FALSE) -> 0.7 | E26: Hyperthyroid 1.3
B27: Salt (S) for Dosage Form | C27: =VLOOKUP(C25,Parameter!B2:D5,3,FALSE) -> 1
B28: Input Desired Peak Level (mcg/L) From Loading Dose
B29: Calculated Loading Dose (mcg) For IV Administration | C29: =C28*C18/(1) ->  | D29: Enter Time(Hours) until 1st MD for each LD portion
A30: hide | B30: Calculated Loading Dose (mcg/kg) of Lean Body Weight | C30: =C29/C11 -> 
A31: hide | B31: Calculated Maintenance Dose (mcg/kg/day) of LBW | C31: =C38/C11 -> 
B32: Enter 1st part of Loading Dose Given (mcg)
B33: Enter 2nd part of Loading Dose Given (mcg)
B34: Enter 3rd part of Loading Dosge Given (mcg)
B35: Calculated Level before 1st MD from Loading Doses | C35: =(C32/C18)*EXP(-C22*D32)+(C33/C18)*EXP(-C22*D33)+(C34/C18)*EXP(-C22*D34) -> 
B36: Enter trough level if available. This is a level drawn before the start of themaintenance regimen that is entered below (mcg/L). This could be an admission level.
B37: Input Desired Average Steady State Level (mcg/L)
B38: Calculated Maintenance Dose (mcg/day) | C38: =C37*24*C20/(C26*C27) -> 
B39: Enter # of Doses given for regimen - Enter 100 for Steady State
B40: Input Dosing Interval (Hours)
B41: Input Rounded Dose (mcg) per Interval
B42: Calculated Average Steady State Level (mcg/L) | C42: =C26*C27*C41/(C20*C40) -> 
B43: Expected trough level (mcg/L) from N doses, and starting level or Loading dose(s). | C43: =IF(C35=0,(C$26*C$27*C$41*(1-EXP(-C22*C$39*C40))*EXP(-C22*C40)/(C$18*(1-EXP(-C22*C40))))+C$36*EXP(-C22*C$39*C40)+(C32/C18)*EXP(-C22*((C39)*C40+D32))+(C33/C18)*EXP(-C22*((C39)*C40+D33))+(C34/C18)*EXP(-C22*((C39)*C40+D34)),(C$26*C$27*C$41*(1-EXP(-C22*C$39*C40))*EXP(-C22*C40)/(C$18*(1-EXP(-C22*C40))))+(C32/C18)*EXP(-C22*((C39)*C40+D32))+(C33/C18)*EXP(-C22*((C39)*C40+D33))+(C34/C18)*EXP(-C22*((C39)*C40+D34))) -> 
B45: Patient Specific Dosing Based on Serum Levels
B46: Input Measured Trough Level after above dosing regimen (mcg/L)
A47: Hide | B47: Input Multiplier of K (eg 0.75, 1.25, 0.90, 1.10)
B48: Estimated Trough Level after above regimen (mcg/L) | C48: =IF(C35=0,(C$26*C$27*C$41*(1-EXP(-C50*C$39*C40))*EXP(-C50*C40)/(C$18*(1-EXP(-C50*C40))))+C$36*EXP(-C50*C$39*C40)+(C32/C18)*EXP(-C50*((C39)*C40+D32))+(C33/C18)*EXP(-C50*((C39)*C40+D33))+(C34/C18)*EXP(-C50*((C39)*C40+D34)),(C$26*C$27*C$41*(1-EXP(-C50*C$39*C40))*EXP(-C50*C40)/(C$18*(1-EXP(-C50*C40))))+(C32/C18)*EXP(-C50*((C39)*C40+D32))+(C33/C18)*EXP(-C50*((C39)*C40+D33))+(C34/C18)*EXP(-C50*((C39)*C40+D34))) ->  | D48: Bayesian Function Minimum
B49: (Predicted Level - Actual Level)^2: Value to Minimize | C49: =(C46-C48)^2 ->  | D49: =((C48-C46)^2) /(0.1^2*C46^2)+(((C22*C18-C50*C18)^2)/(C22*C18/10)^2) -> 
B50: Fit Estimate of K ( 1/hours) | C50: 0.01056569604
B51: Calculated Days To Obtain Desired Level (cell c36) When Measured Level Is Greater Than Desired Level. Assumes Doses Are Held During This Time . | C51: =IF(C48>C37,LN(C48/C37)/(C53*24),"") -> 
B52: Calculated Clearance (L/hour) for measured level | C52: =C50*C18 -> 
B53: Calculated K (1/hours) for measured level | C53: =C52/C18 -> 
B54: Calculated Half-Life (Days) for measured level | C54: =0.693/(24*C53) -> 
B55: Calculated IV Loading Dose (mcg) = (Cp average desired - Cp current)*Vd | C55: =IF(ISNUMBER(C46),IF(C48<C37,(C37-C48)*C18/1,""),"") -> 
B56: Daily Dose (mcg/day) Required For Desired Level Input Above in Cell C36. | C56: =C37*C52*24/(C26*C27) -> 
B57: Input Dosing Interval (Hours), usually 24 hours
B58: Input Rounded Dose (mcg/day)
B59: Calculated Average Steady State Level (mcg/L) | C59: =C26*C27*C58/(C52*C57) -> 
B60: Days to 87.5% of Steady State Level For Rising Levels | C60: =IF(AND(C48<C59,C48/C59<0.875),-LN(0.125/(1-C48/C59))/(C62*C57),"") -> 
B61: Daily Dose (mcg) Used in Table and Graphic Below | C61: =IF(ISNUMBER(C58),C58,C41) -> 0
B62: K (1/hours) Used in Table and Graphic Below | C62: =IF(ISNUMBER(C46),C52/C18,C22) -> 
B63: For Educational Use Only. No warrenties are expressed or implied.
B64: Clear all input cells, except for drop down boxes, by backspacing through them before stating a new patient input.
B66: Serum Levels Below Are Calculated By The Method of Superposition | F66: Hide | G66: hide | H66: Hide
B67: Population Based Dosing Without Levels or Patient Specific if Serum Levels Are Entered. | F67: Steady State Level Used (mg/L)
B68: Starting Level if drug is on board from Prior Level (mg/L) | C68: =IF(ISNUMBER(C46),C48,"") ->  | F68: =IF(ISNUMBER(C59),C59,C42) -> 
A69: Dose | C69: Peak (mcg/L) After Dose | D69: Trough Before Next Dose (mcg/L) | E69: Average Level (mcg/L) | F69: Time To Steady State | G69: Days To State State or 4 Half-Lives) | H69: Time to Level (Days) book eq | I69: Time to Level (Days) | J69: Time (Days) from Level to Steady State
A70: 1 | B70: Dose 1 | C70: =IF(ISNUMBER(C68),(C$26*C$27*C$61/(C$18))+C68,(C$26*C$27*C$61/(C$18))) ->  | D70: =IF(ISNUMBER(C$57),C70*EXP(-C$62*C$57),C70*EXP(-C$62*C$40)) ->  | E70: =(C70+D70)/2 ->  | F70: =-LN(1-0.875)/(C62*24) ->  | G70: =IF(F70>0,F70,"") ->  | H70: =IF(F70>0,-(LN(1-E70/F$68))/(C$62*24),"") ->  | I70: =IF(F70>0,-LN((F$68-E70)/F$68)/(C$62*24),"") ->  | J70: =IF(F$70>I70,F$70-I70,"") -> 
A71: 2 | B71: Dose 2 | C71: =(C$26*C$27*C$61/(C$18)+D70) ->  | E71: =(C71+D71)/2 ->  | F71: =F70-1 ->  | G71: =IF(F71>0,F71,"") -> 
A72: 3 | B72: Dose 3 | F72: =F71-1 -> 
A73: 4 | B73: Dose 4 | F73: =F72-1 -> 
A74: 5 | B74: Dose 5
A75: 6 | B75: Dose 6
A76: 7 | B76: Dose 7
A77: 8 | B77: Dose 8
A78: 9 | B78: Dose 9
A79: 10 | B79: Dose 10
A80: 11 | B80: Dose 11
A81: 12 | B81: Dose 12
A82: 13 | B82: Dose 13
A83: 14 | B83: Dose 14
A84: 15 | B84: Dose 15
A85: 16 | B85: Dose 16
A86: 17 | B86: Dose 17
A87: 18 | B87: Dose 18
A88: 19 | B88: Dose 19
A89: 20 | B89: Dose 20
A90: 21 | B90: Dose 21
A91: 22 | B91: Dose 22
A92: 23 | B92: Dose 23
A93: 24 | B93: Dose 24
A94: 25 | B94: Dose 25
A95: 26 | B95: Dose 26
A96: 27 | B96: Dose 27
A97: 28 | B97: Dose 28
A98: 29 | B98: Dose 29

Sheet Sheet1 (hidden)

Sheet Bayseian Simulation (hidden)
D1: Input fraction of Predicted Level | E1: Input | G1: Population Clearance for Predicted level | H1: Clearance for Actual Level | I1: =J3/E3 -> 4
C2: Level Multiplier | D2: 0.9 | E2: Std Deviation For level | F2: Std Deviation for Level with Weighting | G2: Input Pop Mean Clearance (l/hr) | I2: Input Std Deviation Divider | J2: Input # divisor for Clearance StdDev (# number) | K2: ratio
C3: Predicted population Level | D3: Actual Level | E3: 0.5 | F3: 1/level^2 | G3: 7.4 | I3: 4 | J3: 2 | K3: =J3/E3 -> 4
E4: (Cpactual-Cppredicted)^2/SD^2 | F4: (Cpactual-Cppredicted)^2/(stddevlevel*Actual Level)^2 | I4: (Clpop-Clcalculate)^2/(mean CL/#)^2 | J4: (Clpop-Clcalc)^2/(mean Cl/#S)^2
C5: =C$15+C$15*1 -> 16 | D5: =C5*D$2 -> 14.4 | E5: =(D5-C5)^2/E$3^2 -> 10.24 | F5: =E5/D5^2 -> 0.04938271605 | G5: =G$15/C5 -> 0.4625 | H5: =C5/D5*G5 -> 0.5138888889 | I5: =(G5-H5)^2/(G5/I$3)^2 -> 0.1975308642 | J5: =(G5-H5)^2/(G5/J$3)^2 -> 0.04938271605
C6: =C$15+C$15*0.9 -> 15.2 | D6: =C6*D$2 -> 13.68 | E6: =(D6-C6)^2/E$3^2 -> 9.2416 | F6: =E6/D6^2 -> 0.04938271605 | G6: 0.4868421053 | H6: =C6/D6*G6 -> 0.5409356725 | I6: =(G6-H6)^2/(G6/I$3)^2 -> 0.1975308642 | J6: =(G6-H6)^2/(G6/J$3)^2 -> 0.04938271605
C7: =C$15+C$15*0.8 -> 14.4 | D7: 12.96 | E7: 8.2944 | F7: 0.04938271605 | G7: 0.5138888889 | H7: 0.5709876543 | I7: 0.1975308642 | J7: =(G7-H7)^2/(G7/J$3)^2 -> 0.04938271605
C8: =C$15+C$15*0.7 -> 13.6 | D8: 12.24 | E8: 7.3984 | F8: 0.04938271605 | G8: 0.5441176471 | H8: 0.6045751634 | I8: 0.1975308642 | J8: 0.04938271605
C9: =C$15+C$15*0.6 -> 12.8 | D9: 11.52 | E9: 6.5536 | F9: 0.04938271605 | G9: 0.578125 | H9: 0.6423611111 | I9: 0.1975308642 | J9: 0.04938271605
C10: =C$15+C$15*0.5 -> 12 | D10: 10.8 | E10: =(D10-C10)^2/E$3^2 -> 5.76 | F10: 0.04938271605 | G10: 0.6166666667 | H10: 0.6851851852 | I10: 0.1975308642 | J10: 0.04938271605
C11: =C$15+C$15*0.4 -> 11.2 | D11: 10.08 | E11: 5.0176 | F11: 0.04938271605 | G11: 0.6607142857 | H11: 0.7341269841 | I11: 0.1975308642 | J11: 0.04938271605
C12: =C$15+C$15*0.3 -> 10.4 | D12: 9.36 | E12: 4.3264 | F12: 0.04938271605 | G12: 0.7115384615 | H12: 0.7905982906 | I12: 0.1975308642 | J12: 0.04938271605
C13: =C$15+C$15*0.2 -> 9.6 | D13: 8.64 | E13: 3.6864 | F13: 0.04938271605 | G13: 0.7708333333 | H13: 0.8564814815 | I13: 0.1975308642 | J13: 0.04938271605
C14: =C$15+C$15*0.1 -> 8.8 | D14: 7.92 | E14: 3.0976 | F14: 0.04938271605 | G14: =G$15/C14 -> 0.8409090909 | H14: 0.9343434343 | I14: 0.1975308642 | J14: 0.04938271605
B15: Input mean level | C15: 8 | D15: 7.2 | E15: 2.56 | F15: 0.04938271605 | G15: =G3 -> 7.4 | H15: =C15/D15*G15 -> 8.222222222 | I15: 0.1975308642 | J15: 0.04938271605
C16: =C$15-C$15*0.1 -> 7.2 | D16: 6.48 | E16: 2.0736 | F16: 0.04938271605 | G16: =G$15/C16 -> 1.027777778 | H16: 1.141975309 | I16: 0.1975308642 | J16: 0.04938271605
C17: =C$15-C$15*0.2 -> 6.4 | D17: 5.76 | E17: 1.6384 | F17: 0.04938271605 | G17: =G$15/C17 -> 1.15625 | H17: 1.284722222 | I17: 0.1975308642 | J17: 0.04938271605
C18: =C$15-C$15*0.3 -> 5.6 | D18: 5.04 | E18: 1.2544 | F18: 0.04938271605 | G18: 1.321428571 | H18: 1.468253968 | I18: 0.1975308642 | J18: 0.04938271605
C19: =C$15-C$15*0.4 -> 4.8 | D19: 4.32 | E19: 0.9216 | F19: 0.04938271605 | G19: 1.541666667 | H19: 1.712962963 | I19: 0.1975308642 | J19: 0.04938271605
C20: =C$15-C$15*0.5 -> 4 | D20: 3.6 | E20: 0.64 | F20: 0.04938271605 | G20: 1.85 | H20: 2.055555556 | I20: 0.1975308642 | J20: 0.04938271605
C21: =C$15-C$15*0.6 -> 3.2 | D21: 2.88 | E21: 0.4096 | F21: 0.04938271605 | G21: 2.3125 | H21: 2.569444444 | I21: 0.1975308642 | J21: 0.04938271605
C22: =C$15-C$15*0.7 -> 2.4 | D22: 2.16 | E22: 0.2304 | F22: 0.04938271605 | G22: 3.083333333 | H22: 3.425925926 | I22: 0.1975308642 | J22: 0.04938271605
C23: =C$15-C$15*0.8 -> 1.6 | D23: 1.44 | E23: 0.1024 | F23: 0.04938271605 | G23: =G$15/C23 -> 4.625 | H23: 5.138888889 | I23: 0.1975308642 | J23: 0.04938271605
C24: =C$15-C$15*0.9 -> 0.8 | D24: 0.72 | E24: =(D24-C24)^2/E$3^2 -> 0.0256 | F24: 0.04938271605 | G24: 9.25 | H24: 10.27777778 | I24: 0.1975308642 | J24: 0.04938271605

Sheet Comparison of Vd Equations (hidden)
D1: Height(inches) | E1: 70
D2: Lean Body Weight(kg) | E2: 70
D3: Surface Area Meters Squared | E3: =(E2^0.425)*((E1*2.54)^0.725)*0.007184 -> 1.86953463
D4: Creaatinine Clearance (ml/min) | E4: 150 | F4: 140 | G4: 130 | H4: 120 | I4: 110 | J4: 100 | K4: 90 | L4: 80 | M4: 70 | N4: 60 | O4: 50 | P4: 40 | Q4: 30 | R4: 20 | S4: 10 | T4: 0
D5: Creatinine Clearance (ml/min/1.73) | E5: =E4*1.73/$E3 -> 138.8045965 | F5: 129.5509567 | G5: 120.297317 | H5: 111.0436772 | I5: 101.7900374 | J5: 92.53639766 | K5: 83.2827579 | L5: 74.02911813 | M5: 64.77547836 | N5: 55.5218386 | O5: 46.26819883 | P5: 37.01455907 | Q5: 27.7609193 | R5: 18.50727953 | S5: 9.253639766 | T5: 0
B6: Qunidine Study | C6: Williams Eq. | D6: V(L)=(5.05l/kg +(0.0882*clcrml/min))IBW | E6: =(5.05+0.0882*E4)*$E2 -> 1279.6 | F6: 1217.86 | G6: 1156.12 | H6: 1094.38 | I6: 1032.64 | J6: 970.9 | K6: 909.16 | L6: 847.42 | M6: 785.68 | N6: 723.94 | O6: 662.2 | P6: 600.46 | Q6: 538.72 | R6: 476.98 | S6: 415.24 | T6: 353.5
D7: Williams L/kg | E7: =E6/$E2 -> 18.28 | F7: 17.398 | G7: 16.516 | H7: 15.634 | I7: 14.752 | J7: 13.87 | K7: 12.988 | L7: 12.106 | M7: 11.224 | N7: 10.342 | O7: 9.46 | P7: 8.578 | Q7: 7.696 | R7: 6.814 | S7: 5.932 | T7: 5.05
C8: Reuning Eq. | D8: V(L)=3.8*LBW+3.1*clcrml/min | E8: =3.8*$E2 +3.1*E4 -> 731 | F8: 700 | G8: 669 | H8: 638 | I8: 607 | J8: 576 | K8: 545 | L8: 514 | M8: 483 | N8: 452 | O8: 421 | P8: 390 | Q8: 359 | R8: 328 | S8: 297 | T8: 266
D9: Reuning L/kg | E9: =E8/$E2 -> 10.44285714 | F9: 10 | G9: 9.557142857 | H9: 9.114285714 | I9: 8.671428571 | J9: 8.228571429 | K9: 7.785714286 | L9: 7.342857143 | M9: 6.9 | N9: 6.457142857 | O9: 6.014285714 | P9: 5.571428571 | Q9: 5.128571429 | R9: 4.685714286 | S9: 4.242857143 | T9: 3.8
C10: Jusko Eq. | D10: V(L)=[226kper1.73m2+(298*Clcrml/min/1.73m2)/(29.1ml/min/1.73+Clcrml/min/1.73)]*SA/1.73 | E10: =(226+(298*E5)/(29.1+E5))*$E3/1.73 -> 510.4508339 | F10: 507.1954368 | G10: 503.5367624 | H10: 499.394926 | I10: 494.6674519 | J10: 489.220681 | K10: 482.8769316 | L10: 475.3947497 | M10: 466.4374772 | N10: 455.5211981 | O10: 441.924337 | P10: 424.5213414 | Q10: 401.4539614 | R10: 369.4191618 | S10: 321.9261946 | T10: 244.2282234
D11: Jusko L/kg | E11: =E10/$E2 -> 7.29215477 | F11: 7.245649097 | G11: 7.193382321 | H11: 7.134213228 | I11: 7.066677885 | J11: 6.988866872 | K11: 6.89824188 | L11: 6.791353567 | M11: 6.663392532 | N11: 6.507445687 | O11: 6.313204814 | P11: 6.064590591 | Q11: 5.735056591 | R11: 5.277416597 | S11: 4.598945638 | T11: 3.48897462
C12: Paulson & Welling Eq. | D12: V(L)=(4.5+0.028xclcrml/min/1.73)*LBW | E12: =(4.5+0.028*E5)*$E2 -> 587.0570091 | F12: 568.9198752 | G12: 550.7827412 | H12: 532.6456073 | I12: 514.5084734 | J12: 496.3713394 | K12: 478.2342055 | L12: 460.0970715 | M12: 441.9599376 | N12: 423.8228037 | O12: 405.6856697 | P12: 387.5485358 | Q12: 369.4114018 | R12: 351.2742679 | S12: 333.1371339 | T12: 315
D13: Paulson and Wellinng L/kr | E13: =E12/$E2 -> 8.386528702 | F13: 8.127426788 | G13: 7.868324875 | H13: 7.609222961 | I13: 7.350121048 | J13: 7.091019135 | K13: 6.831917221 | L13: 6.572815308 | M13: 6.313713394 | N13: 6.054611481 | O13: 5.795509567 | P13: 5.536407654 | Q13: 5.27730574 | R13: 5.018203827 | S13: 4.759101913 | T13: 4.5
C14: Sheiner Eq. | D14: V(L)=(153+29.5*clcr(L/hr/m2)*BSA | E14: =(153+(29.5*E4*60/($E3*1000))*$E3) -> 418.5 | F14: 400.8 | G14: 383.1 | H14: 365.4 | I14: 347.7 | J14: 330 | K14: 312.3 | L14: 294.6 | M14: 276.9 | N14: 259.2 | O14: 241.5 | P14: 223.8 | Q14: 206.1 | R14: 188.4 | S14: 170.7 | T14: 153
D15: Sheiner L/kg | E15: =E14/$E2 -> 5.978571429 | F15: 5.725714286 | G15: 5.472857143 | H15: 5.22 | I15: 4.967142857 | J15: 4.714285714 | K15: 4.461428571 | L15: 4.208571429 | M15: 3.955714286 | N15: 3.702857143 | O15: 3.45 | P15: 3.197142857 | Q15: 2.944285714 | R15: 2.691428571 | S15: 2.438571429 | T15: 2.185714286
B16: hide | D16: Mean | E16: =AVERAGE(E7,E9,E11,E13,E15) -> 10.07602241 | F16: =AVERAGE(F7,F9,F11,F13,F15) -> 9.699358034 | G16: 9.321541439 | H16: 8.942344381 | I16: 8.561474072 | J16: 8.17854863 | K16: 7.793060392 | L16: 7.404319489 | M16: 7.011364042 | N16: 6.612811433 | O16: 6.206600019 | P16: 5.789513935 | Q16: 5.356243895 | R16: 4.897352656 | S16: 4.394295225 | T16: 3.804937781
B17: hide | D17: Std Dev | E17: =_xlfn.STDEV.P(E7,E9,E11,E13,E15) -> 4.355071264 | F17: =_xlfn.STDEV.P(F7,F9,F11,F13,F15) -> 4.090011583 | G17: 3.828028538 | H17: 3.569599905 | I17: 3.315289126 | J17: 3.065756077 | K17: 2.821762515 | L17: 2.584163669 | M17: 2.353869142 | N17: 2.131741221 | O17: 1.918374303 | P17: 1.713670536 | Q17: 1.51615078 | R17: 1.322382888 | S17: 1.130246942 | T17: 0.9751956979

Sheet Comparison of Cl Equations (hidden)
C1: Height(inches) | D1: 70
C2: Lean Body Weight(kg) | D2: 70
C3: Surface Area Meters Squared | D3: =(D2^0.425)*((D1*2.54)^0.725)*0.007184 -> 1.86953463
C4: Creatinine Clearance (ml/min) | D4: 150 | E4: 140 | F4: 130 | G4: 120 | H4: 110 | I4: 100 | J4: 90 | K4: 80 | L4: 70 | M4: 60 | N4: 50 | O4: 40 | P4: 30 | Q4: 20 | R4: 10 | S4: 0
A5: Assumed F | C5: Creatinine Clearance (ml/min/1.73 m2) | D5: =D4*1.73/$D3 -> 138.8045965 | E5: =E4*1.73/$D3 -> 129.5509567 | F5: 120.297317 | G5: 111.0436772 | H5: 101.7900374 | I5: 92.53639766 | J5: 83.2827579 | K5: 74.02911813 | L5: 64.77547836 | M5: 55.5218386 | N5: 46.26819883 | O5: 37.01455907 | P5: 27.7609193 | Q5: 18.50727953 | R5: 9.253639766 | S5: 0
A6: 0.6 | B6: Koup Eq. CHF | C6: Cl(L/hr)=(1.303*clcrml/min+20 ml/min)*60/1000 | D6: =(1.303*D4+20)*60/1000 -> 12.927 | E6: =(1.303*E4+20)*60/1000 -> 12.1452 | F6: 11.3634 | G6: 10.5816 | H6: 9.7998 | I6: 9.018 | J6: 8.2362 | K6: 7.4544 | L6: 6.6726 | M6: 5.8908 | N6: 5.109 | O6: 4.3272 | P6: 3.5454 | Q6: 2.7636 | R6: 1.9818 | S6: 1.2
A7: 0.6 | B7: Koup Eq. Non CHF | C7: Cl(L/hr)=(1.303*crclml/min+41ml/min)*60/1000 | D7: =(1.303*D4+41)*60/1000 -> 14.187 | E7: =(1.303*E4+41)*60/1000 -> 13.4052 | F7: 12.6234 | G7: 11.8416 | H7: 11.0598 | I7: 10.278 | J7: 9.4962 | K7: 8.7144 | L7: 7.9326 | M7: 7.1508 | N7: 6.369 | O7: 5.5872 | P7: 4.8054 | Q7: 4.0236 | R7: 3.2418 | S7: 2.46
A9: 0.6 | B9: Sheiner Eq. CHF | C9: Cl(L/hr)=(0.78L/hr/m2+(crclL/hr/m2*0.88)*SA | D9: =(0.78+(D4/$D3)*(60/1000)*0.88)*$D3 -> 9.378237012 | E9: =(0.78+(E4/$D3)*(60/1000)*0.88)*$D3 -> 8.850237012 | F9: 8.322237012 | G9: 7.794237012 | H9: 7.266237012 | I9: 6.738237012 | J9: 6.210237012 | K9: 5.682237012 | L9: 5.154237012 | M9: 4.626237012 | N9: 4.098237012 | O9: 3.570237012 | P9: 3.042237012 | Q9: 2.514237012 | R9: 1.986237012 | S9: 1.458237012
A10: 0.6 | B10: Sheiner Eq. Non CHF | C10: Ck(L/hr)=1.94L/hr/m2 +(clcrml/hr/m2*1.02)*SA | D10: =(1.94+(D4/$D3)*60/1000*1.02)*$D3 -> 12.80689718 | E10: =(1.94+(E4/$D3)*60/1000*1.02)*$D3 -> 12.19489718 | F10: =(1.94+(F4/$D3)*60/1000*1.02)*$D3 -> 11.58289718 | G10: 10.97089718 | H10: 10.35889718 | I10: 9.746897183 | J10: 9.134897183 | K10: 8.522897183 | L10: 7.910897183 | M10: 7.298897183 | N10: 6.686897183 | O10: 6.074897183 | P10: 5.462897183 | Q10: 4.850897183 | R10: 4.238897183 | S10: 3.626897183
A11: hide | C11: Difference Non CHF | D11: =D7-D10 -> 1.380102817 | E11: =E7-E10 -> 1.210302817 | F11: 1.040502817 | G11: 0.8707028171 | H11: 0.7009028171 | I11: 0.5311028171 | J11: 0.3613028171 | K11: 0.1915028171 | L11: 0.02170281712 | M11: -0.1480971829 | N11: -0.3178971829 | O11: -0.4876971829 | P11: -0.6574971829 | Q11: -0.8272971829 | R11: -0.9970971829 | S11: -1.166897183
A12: hide | C12: Difference CHF | D12: =D6-D9 -> 3.548762988 | E12: =E6-E9 -> 3.294962988 | F12: 3.041162988 | G12: 2.787362988 | H12: 2.533562988 | I12: 2.279762988 | J12: 2.025962988 | K12: 1.772162988 | L12: 1.518362988 | M12: 1.264562988 | N12: 1.010762988 | O12: 0.7569629883 | P12: 0.5031629883 | Q12: 0.2493629883 | R12: -0.004437011675 | S12: -0.2582370117
A14: 0.82 | B14: Williams Eq. | C14: Cl(L/hr)=3.1L/hr+0.0516*clcrml/min) | D14: =3.1+0.0516*D4 -> 10.84 | E14: 10.324 | F14: 9.808 | G14: 9.292 | H14: 8.776 | I14: 8.26 | J14: 7.744 | K14: 7.228 | L14: 6.712 | M14: 6.196 | N14: 5.68 | O14: 5.164 | P14: 4.648 | Q14: 4.132 | R14: 3.616 | S14: 3.1
A15: hide | B15: Winters Sheiner CHF | C15: Cl(L/hr)=(0.321ml/kg/min*LBW +0.88)*60/100 | D15: =(0.33*$D2+0.9*D4)*60/1000 -> 9.486 | E15: =(0.33*$D2+0.9*E4)*60/1000 -> 8.946 | F15: 8.406 | G15: 7.866 | H15: 7.326 | I15: 6.786 | J15: 6.246 | K15: 5.706 | L15: 5.166 | M15: 4.626 | N15: 4.086 | O15: 3.546 | P15: 3.006 | Q15: 2.466 | R15: 1.926 | S15: 1.386
A16: hide | B16: Winters Sheiner Non CHF | C16: Cl(L/hr)=(0.8ml/kg/min*LBW +1.02clcrml/min)*60/1000 | D16: =(0.8*$D2+1*D4)*60/1000 -> 12.36 | E16: =(0.8*$D2+1*E4)*60/1000 -> 11.76 | F16: 11.16 | G16: 10.56 | H16: 9.96 | I16: 9.36 | J16: 8.76 | K16: 8.16 | L16: 7.56 | M16: 6.96 | N16: 6.36 | O16: 5.76 | P16: 5.16 | Q16: 4.56 | R16: 3.96 | S16: 3.36
A17: hide | B17: Honish Eq. CHF | C17: Cl(L/hr)=(2.22/24*(clcrml/min+25.7) | D17: =((2.22/24)*(D4+25.7)) -> 16.25225 | E17: =((2.22/24)*(E4+25.7)) -> 15.32725 | F17: 14.40225 | G17: 13.47725 | H17: 12.55225 | I17: 11.62725 | J17: 10.70225 | K17: 9.77725 | L17: 8.85225 | M17: 7.92725 | N17: 7.00225 | O17: 6.07725 | P17: 5.15225 | Q17: 4.22725 | R17: 3.30225 | S17: 2.37725

Sheet Parameter (hidden)
A1: Sex | C1: Fraction | D1: Salt | F1: ASHP | G1: Vd(L/kg) | H1: Cl (L/hr/M2) | J1: age | K1: age years | L1: IV mcg/kg | M1: Vd (L/kg) calc serum level = 2 | N1: Minimum maintenance dose (mcg/kg/day) | O1: Maximum maintenance dose (mcg/kg/day) | P1: Minimum Clearnance Calc (l/hr/kg) Serum Level = 1 | Q1: Maximum Clearance Calc (l/hr/kg) Serum Level = 1
A2: Male | B2: Capsule | C2: 1 | D2: 1 | F2: Neonates | G2: 10 | H2: 1.5 | J2: Premature | K2: =38/52 -> 0.7307692308 | L2: =(15+25)/2 -> 20 | M2: =L2*(1)/(2) -> 10 | N2: 4 | O2: 6 | P2: =(N2)/(1*24) -> 0.1666666667 | Q2: =O2/(24) -> 0.25
A3: Female | B3: Elixir | C3: 0.8 | D3: 1 | F3: Infants | G3: 16.3 | H3: 11.2 | J3: Full term | K3: =40/52 -> 0.7692307692 | L3: 25 | M3: =L3*(1)/(2) -> 12.5 | N3: 5 | O3: 8 | P3: =(N3)/(1*24) -> 0.2083333333 | Q3: =O3/(24) -> 0.3333333333
B4: Injection | C4: 1 | D4: 1 | F4: 1-12 years | G4: 16.1 | H4: 8 | J4: 1 < 2 years | K4: 1.5 | L4: 40 | M4: =L4*(0.8)/(2) -> 16 | N4: 9 | O4: 15 | P4: 0.375 | Q4: 0.625
B5: Tablets | C5: 0.7 | D5: 1 | F5: adults | G5: 6.7 | J5: 2-5 years | K5: 3.5 | L5: =(25+35)/2 -> 30 | M5: =L5*(0.8)/(2) -> 12 | N5: 6 | O5: 9 | P5: 0.25 | Q5: 0.375
J6: 5 - 10 years | K6: 7.5 | L6: =(15+30)/2 -> 22.5 | M6: =L6*(0.8)/(2) -> 9 | N6: 4 | O6: 8 | P6: 0.1666666667 | Q6: 0.3333333333
J7: > 10 years | K7: 10 | L7: 10 | M7: =L7*(0.8)/(2) -> 4 | N7: 2 | O7: 3 | P7: 0.08333333333 | Q7: 0.125
J8: adults | K8: 18 | L8: 12.5 | M8: =L8*(0.75)/(2) -> 4.6875 | N8: =(125)/(70) -> 1.785714286 | O8: =250/70 -> 3.571428571 | P8: 0.0744047619 | Q8: 0.1488095238
A9: Drug Interaction Clearnarance Multiplier | C9: Vd | E9: CHF Present
A10: None | B10: 1 | C10: 1 | E10: Yes
A11: Amiodarone | B11: 0.5 | C11: 1 | E11: No
A12: Canaglifozin | B12: 0.8 | C12: 1 | P12: =10.4/70 -> 0.1485714286
A13: Carvedilol | B13: 0.75 | C13: 1
A14: Dronedarone | B14: 0.5 | C14: 1
A15: Ketoconazole/Itraconazole | B15: 0.5 | C15: 1
A16: Propafenone | B16: 0.75 | C16: 1
A17: Quinidine | B17: 0.5 | C17: 0.7
A18: Ranolazine | B18: 0.67 | C18: 1
A19: Verapamil | B19: 0.75 | C19: 1
A20: Hypothyroidism | B20: 0.7 | C20: 0.7
A21: Hyperthyroidism | B21: 1.3 | C21: 1.3
A23: Volume of Distribution Multiplier
A24: Hypothyroidism | B24: 0.7 | C24: 0.7
A25: Hyperthyroidism | B25: 1.3 | C25: 1.3
A26: Quinidine | B26: 0.7
